[Event "Early-Titled-Tuesday-Blitz-April-16-2024"]
[Site "Chess.com"]
[Date "2024.04.16"]
[Round "2"]
[White "MrChampion_Coach"]
[Black "alexrustemov"]
[Result "0-1"]
[WhiteElo "2572"]
[BlackElo "2850"]
[TimeControl "180+1"]
[EndTime "8:18:17 PDT"]
[Termination "alexrustemov won on time"]

1. d4 {[%clk 0:03:00.9]} 1... g6 {[%clk 0:02:58.9]} 2. e4 {[%clk 0:03:00.3]}
2... Bg7 {[%clk 0:02:59.5]} 3. Nf3 {[%clk 0:03:00.3]} 3... d6 {[%clk 0:03:00]}
4. c3 {[%clk 0:02:57.6]} 4... Nc6 {[%clk 0:02:50.6]} 5. h3 {[%clk 0:02:53.9]}
5... e5 {[%clk 0:02:49.2]} 6. Bb5 {[%clk 0:02:52.2]} 6... Bd7 {[%clk 0:02:46.6]}
7. O-O {[%clk 0:02:52.1]} 7... a6 {[%clk 0:02:42.9]} 8. Bd3 {[%clk 0:02:47.8]}
8... Nf6 {[%clk 0:02:39]} 9. Re1 {[%clk 0:02:44.5]} 9... O-O {[%clk 0:02:38.7]}
10. Na3 {[%clk 0:02:39.6]} 10... Re8 {[%clk 0:02:37.2]} 11. dxe5 {[%clk
0:02:33.6]} 11... Nxe5 {[%clk 0:02:35.2]} 12. Nxe5 {[%clk 0:02:33.2]} 12... Rxe5
{[%clk 0:02:35.2]} 13. Nc4 {[%clk 0:02:32]} 13... Re6 {[%clk 0:02:34.2]} 14. Bg5
{[%clk 0:02:23.4]} 14... h6 {[%clk 0:02:32.3]} 15. Bh4 {[%clk 0:02:22.7]} 15...
Bb5 {[%clk 0:02:20.5]} 16. a4 {[%clk 0:02:17.2]} 16... Bc6 {[%clk 0:02:15.5]}
17. Qc2 {[%clk 0:02:14.8]} 17... Qe7 {[%clk 0:02:11.3]} 18. Nd2 {[%clk
0:01:26.4]} 18... Re8 {[%clk 0:02:09.9]} 19. f3 {[%clk 0:01:12.2]} 19... d5
{[%clk 0:02:01.9]} 20. exd5 {[%clk 0:01:07.1]} 20... Bxd5 {[%clk 0:01:56.6]} 21.
Ne4 {[%clk 0:01:05.5]} 21... Bxe4 {[%clk 0:01:43.3]} 22. Rxe4 {[%clk 0:01:05.6]}
22... Rxe4 {[%clk 0:01:41.4]} 23. Bxe4 {[%clk 0:00:56]} 23... g5 {[%clk
0:01:41.1]} 24. Bg3 {[%clk 0:00:56.6]} 24... Nxe4 {[%clk 0:01:41.2]} 25. fxe4
{[%clk 0:00:55.8]} 25... Be5 {[%clk 0:01:32.9]} 26. Bxe5 {[%clk 0:00:41]} 26...
Qxe5 {[%clk 0:01:33.8]} 27. Rd1 {[%clk 0:00:41.2]} 27... Qxe4 {[%clk 0:01:26.1]}
28. Qxe4 {[%clk 0:00:40.9]} 28... Rxe4 {[%clk 0:01:27]} 29. Rd7 {[%clk
0:00:41.1]} 29... Rxa4 {[%clk 0:01:16.1]} 30. Rxc7 {[%clk 0:00:40.8]} 30... b5
{[%clk 0:01:16.7]} 31. b4 {[%clk 0:00:33.8]} 31... Kg7 {[%clk 0:01:15]} 32. Kf2
{[%clk 0:00:34.1]} 32... h5 {[%clk 0:01:12.2]} 33. Rc6 {[%clk 0:00:33.7]} 33...
f6 {[%clk 0:01:11.7]} 34. Kf3 {[%clk 0:00:27.4]} 34... h4 {[%clk 0:01:10.3]} 35.
g3 {[%clk 0:00:25.4]} 35... hxg3 {[%clk 0:01:09.4]} 36. Kxg3 {[%clk 0:00:26.1]}
36... Kg6 {[%clk 0:01:09.4]} 37. h4 {[%clk 0:00:26.4]} 37... gxh4+ {[%clk
0:01:05.2]} 38. Kxh4 {[%clk 0:00:26.5]} 38... Kf5 {[%clk 0:01:05.7]} 39. Kh5
{[%clk 0:00:24.1]} 39... Ra1 {[%clk 0:01:04.3]} 40. Rc5+ {[%clk 0:00:23.8]}
40... Ke4 {[%clk 0:01:01.9]} 41. Kg6 {[%clk 0:00:22]} 41... Rf1 {[%clk
0:00:57.2]} 42. Rc6 {[%clk 0:00:18.2]} 42... f5 {[%clk 0:00:56.2]} 43. Rxa6
{[%clk 0:00:18.5]} 43... f4 {[%clk 0:00:52.9]} 44. Re6+ {[%clk 0:00:11.1]} 44...
Kd3 {[%clk 0:00:52.3]} 45. Kg5 {[%clk 0:00:07]} 45... Kxc3 {[%clk 0:00:47.8]}
46. Re4 {[%clk 0:00:05.4]} 46... f3 {[%clk 0:00:43.7]} 47. Kf4 {[%clk 0:00:05]}
47... f2 {[%clk 0:00:38.1]} 48. Re2 {[%clk 0:00:04.4]} 48... Kxb4 {[%clk
0:00:36.8]} 49. Kf3 {[%clk 0:00:04.3]} 49... Kc3 {[%clk 0:00:35]} 50. Re3+
{[%clk 0:00:04]} 50... Kd4 {[%clk 0:00:34.6]} 51. Re4+ {[%clk 0:00:04.3]} 51...
Kd5 {[%clk 0:00:33]} 52. Re8 {[%clk 0:00:05]} 52... b4 {[%clk 0:00:24]} 53. Rd8+
{[%clk 0:00:02.8]} 53... Kc4 {[%clk 0:00:24.2]} 54. Rc8+ {[%clk 0:00:03.2]}
54... Kb3 {[%clk 0:00:24.5]} 55. Ke2 {[%clk 0:00:03.2]} 55... Re1+ {[%clk
0:00:24.2]} 56. Kxf2 {[%clk 0:00:03.6]} 56... Re7 {[%clk 0:00:25]} 57. Rd8
{[%clk 0:00:01.6]} 57... Kc3 {[%clk 0:00:24.6]} 58. Rc8+ {[%clk 0:00:01.8]}
58... Kb2 {[%clk 0:00:24.9]} 59. Rc4 {[%clk 0:00:01.4]} 59... b3 {[%clk
0:00:25.2]} 60. Kf3 {[%clk 0:00:01]} 60... Kb1 {[%clk 0:00:25]} 0-1

[Event "Early-Titled-Tuesday-Blitz-April-16-2024"]
[Site "Chess.com"]
[Date "2024.04.16"]
[Round "2"]
[White "Beca95"]
[Black "RamonManon0g"]
[Result "1-0"]
[WhiteElo "2871"]
[BlackElo "2423"]
[TimeControl "180+1"]
[EndTime "8:18:17 PDT"]
[Termination "Beca95 won by checkmate"]

1. e4 {[%clk 0:02:56]} 1... c5 {[%clk 0:02:59.1]} 2. Nf3 {[%clk 0:02:56]} 2...
d6 {[%clk 0:02:59.6]} 3. d4 {[%clk 0:02:56.3]} 3... cxd4 {[%clk 0:03:00.5]} 4.
Nxd4 {[%clk 0:02:56.7]} 4... Nf6 {[%clk 0:03:01.1]} 5. Nc3 {[%clk 0:02:56.3]}
5... a6 {[%clk 0:03:02]} 6. Rg1 {[%clk 0:02:56.6]} 6... h5 {[%clk 0:03:00]} 7.
h3 {[%clk 0:02:56.8]} 7... e5 {[%clk 0:03:00.1]} 8. Nb3 {[%clk 0:02:55.3]} 8...
h4 {[%clk 0:02:57.7]} 9. Bg5 {[%clk 0:02:47.3]} 9... Be7 {[%clk 0:02:57.6]} 10.
Bxf6 {[%clk 0:02:47.1]} 10... Bxf6 {[%clk 0:02:58.5]} 11. Nd5 {[%clk 0:02:46.8]}
11... Bg5 {[%clk 0:02:58.7]} 12. a4 {[%clk 0:02:42.2]} 12... Nc6 {[%clk
0:02:50.5]} 13. a5 {[%clk 0:02:42]} 13... Be6 {[%clk 0:02:47.1]} 14. Bc4 {[%clk
0:02:41.7]} 14... Rc8 {[%clk 0:02:41.9]} 15. Qe2 {[%clk 0:02:41.7]} 15... O-O
{[%clk 0:02:35.1]} 16. c3 {[%clk 0:02:40.6]} 16... Ne7 {[%clk 0:02:19.7]} 17.
Rd1 {[%clk 0:02:34.3]} 17... Ng6 {[%clk 0:02:18.4]} 18. g3 {[%clk 0:02:33.9]}
18... hxg3 {[%clk 0:02:17.5]} 19. Rxg3 {[%clk 0:02:33.9]} 19... Bh4 {[%clk
0:02:16.8]} 20. Rf3 {[%clk 0:02:34]} 20... Bxd5 {[%clk 0:02:11.4]} 21. Bxd5
{[%clk 0:02:33.7]} 21... Nf4 {[%clk 0:02:12.3]} 22. Rxf4 {[%clk 0:02:33.8]}
22... exf4 {[%clk 0:02:13.2]} 23. Nd4 {[%clk 0:02:31.5]} 23... Qg5 {[%clk
0:02:06.8]} 24. Qf3 {[%clk 0:02:26.4]} 24... Rfe8 {[%clk 0:02:00.2]} 25. Kd2
{[%clk 0:02:25.6]} 25... Rc5 {[%clk 0:01:38.2]} 26. b4 {[%clk 0:02:24.8]} 26...
Rc7 {[%clk 0:01:36.5]} 27. Rc1 {[%clk 0:02:24.9]} 27... Qe5 {[%clk 0:01:23.9]}
28. Kd3 {[%clk 0:02:20.2]} 28... Rec8 {[%clk 0:01:18.2]} 29. Ne2 {[%clk
0:02:14.7]} 29... Bf6 {[%clk 0:01:12.7]} 30. Kd2 {[%clk 0:02:14.6]} 30... Rb8
{[%clk 0:00:51.1]} 31. Kd3 {[%clk 0:02:09.4]} 31... b6 {[%clk 0:00:50]} 32. axb6
{[%clk 0:02:08.9]} 32... Rxb6 {[%clk 0:00:50.9]} 33. Rc2 {[%clk 0:01:47]} 33...
g5 {[%clk 0:00:45.9]} 34. Kd2 {[%clk 0:01:36.8]} 34... Rb5 {[%clk 0:00:17]} 35.
Qd3 {[%clk 0:01:36.3]} 35... Rb8 {[%clk 0:00:14]} 36. f3 {[%clk 0:01:36.4]}
36... a5 {[%clk 0:00:11.2]} 37. bxa5 {[%clk 0:01:36]} 37... Rb1 {[%clk
0:00:09.7]} 38. a6 {[%clk 0:01:36.1]} 38... Ra1 {[%clk 0:00:08]} 39. Bb7 {[%clk
0:01:35.7]} 39... Qe6 {[%clk 0:00:07.1]} 40. Qd5 {[%clk 0:01:33.5]} 40... Qxh3
{[%clk 0:00:06.9]} 41. Qxd6 {[%clk 0:01:32.8]} 41... Rd7 {[%clk 0:00:04.2]} 42.
Qxd7 {[%clk 0:01:31.1]} 42... Qxd7+ {[%clk 0:00:05.1]} 43. Bd5 {[%clk
0:01:30.3]} 43... Qb5 {[%clk 0:00:03.9]} 44. Nc1 {[%clk 0:01:24.4]} 44... Qb6
{[%clk 0:00:03.7]} 45. Kd3 {[%clk 0:01:21.1]} 45... Qe3+ {[%clk 0:00:04.6]} 46.
Kc4 {[%clk 0:01:21.5]} 46... Ra4+ {[%clk 0:00:04.5]} 47. Kb5 {[%clk 0:01:20.2]}
47... Ra1 {[%clk 0:00:03.6]} 48. Nb3 {[%clk 0:01:19.9]} 48... Rb1 {[%clk
0:00:03.4]} 49. Ra2 {[%clk 0:01:16.8]} 49... Bd8 {[%clk 0:00:02.8]} 50. a7
{[%clk 0:01:15.9]} 50... Qb6+ {[%clk 0:00:02.8]} 51. Kc4 {[%clk 0:01:11.4]}
51... Qxb3+ {[%clk 0:00:02.7]} 52. Kd4 {[%clk 0:01:12.3]} 52... Bb6+ {[%clk
0:00:01.9]} 53. Ke5 {[%clk 0:01:12.6]} 53... Qxc3+ {[%clk 0:00:02.4]} 54. Kf5
{[%clk 0:01:12.4]} 54... Qc8+ {[%clk 0:00:03.1]} 55. Kf6 {[%clk 0:01:11]} 55...
Rg1 {[%clk 0:00:04]} 56. a8=Q {[%clk 0:01:09.7]} 56... Bd8+ {[%clk 0:00:04.7]}
57. Ke5 {[%clk 0:01:09.4]} 57... Bc7+ {[%clk 0:00:04.8]} 58. Kd4 {[%clk
0:01:08.8]} 58... Bb6+ {[%clk 0:00:05.4]} 59. Kd3 {[%clk 0:01:07.6]} 59... Qxa8
{[%clk 0:00:05.7]} 60. Rxa8+ {[%clk 0:01:07.6]} 60... Kg7 {[%clk 0:00:06.6]} 61.
Rb8 {[%clk 0:01:07.9]} 61... Ba7 {[%clk 0:00:06.5]} 62. Rb7 {[%clk 0:01:07.9]}
62... Ra1 {[%clk 0:00:07.4]} 63. Rxf7+ {[%clk 0:01:07.5]} 63... Kg6 {[%clk
0:00:08.3]} 64. Rd7 {[%clk 0:01:04.8]} 64... Ra3+ {[%clk 0:00:09.2]} 65. Kc4
{[%clk 0:01:04.1]} 65... Re3 {[%clk 0:00:10.1]} 66. Rd6+ {[%clk 0:01:02.1]}
66... Kh5 {[%clk 0:00:09.2]} 67. Rd7 {[%clk 0:01:01.3]} 67... Kh4 {[%clk
0:00:10.1]} 68. Rxa7 {[%clk 0:01:01.3]} 68... Rxf3 {[%clk 0:00:09.2]} 69. e5
{[%clk 0:01:01.6]} 69... Re3 {[%clk 0:00:09.3]} 70. Kd4 {[%clk 0:01:02]} 70...
Re1 {[%clk 0:00:09.1]} 71. Rh7+ {[%clk 0:01:01.7]} 71... Kg3 {[%clk 0:00:08.6]}
72. e6 {[%clk 0:01:00.4]} 72... g4 {[%clk 0:00:09]} 73. Be4 {[%clk 0:01:00.7]}
73... f3 {[%clk 0:00:08.8]} 74. e7 {[%clk 0:01:00.7]} 74... Rd1+ {[%clk
0:00:08.8]} 75. Ke5 {[%clk 0:01:00.6]} 75... f2 {[%clk 0:00:09.3]} 76. Rf7
{[%clk 0:01:00.2]} 76... Rd7 {[%clk 0:00:08.7]} 77. e8=Q {[%clk 0:00:59]} 77...
Rxf7 {[%clk 0:00:08.7]} 78. Qxf7 {[%clk 0:00:58.8]} 78... f1=Q {[%clk
0:00:09.6]} 79. Qxf1 {[%clk 0:00:58.5]} 79... Kh2 {[%clk 0:00:09.9]} 80. Qg2#
{[%clk 0:00:58.1]} 1-0

[Event "Early-Titled-Tuesday-Blitz-April-16-2024"]
[Site "Chess.com"]
[Date "2024.04.16"]
[Round "2"]
[White "esrosenberg"]
[Black "Smoking_Crow"]
[Result "1/2-1/2"]
[WhiteElo "2393"]
[BlackElo "2669"]
[TimeControl "180+1"]
[EndTime "8:18:20 PDT"]
[Termination "Game drawn by repetition"]

1. d4 {[%clk 0:03:00.9]} 1... Nf6 {[%clk 0:02:57.7]} 2. Nf3 {[%clk 0:03:01.3]}
2... d5 {[%clk 0:02:57.7]} 3. g3 {[%clk 0:03:00.4]} 3... e6 {[%clk 0:02:57.7]}
4. Bg2 {[%clk 0:03:00.2]} 4... Be7 {[%clk 0:02:57.4]} 5. O-O {[%clk 0:03:00.8]}
5... O-O {[%clk 0:02:57.7]} 6. c4 {[%clk 0:03:01.2]} 6... dxc4 {[%clk
0:02:58.6]} 7. Na3 {[%clk 0:03:01.2]} 7... Bxa3 {[%clk 0:02:58.2]} 8. bxa3
{[%clk 0:03:02.1]} 8... b5 {[%clk 0:02:55.5]} 9. Ne5 {[%clk 0:02:45.5]} 9... Nd5
{[%clk 0:02:54.5]} 10. a4 {[%clk 0:02:44.4]} 10... c6 {[%clk 0:02:51.2]} 11.
axb5 {[%clk 0:02:35.8]} 11... cxb5 {[%clk 0:02:52.1]} 12. a4 {[%clk 0:02:35.4]}
12... Ba6 {[%clk 0:02:41.4]} 13. axb5 {[%clk 0:02:33]} 13... Bxb5 {[%clk
0:02:42.3]} 14. Ba3 {[%clk 0:02:29.4]} 14... Re8 {[%clk 0:02:41.7]} 15. Qc2
{[%clk 0:02:17]} 15... Nd7 {[%clk 0:02:39.1]} 16. Nxd7 {[%clk 0:01:45.9]} 16...
Qxd7 {[%clk 0:02:37.6]} 17. e4 {[%clk 0:01:46.6]} 17... Nb6 {[%clk 0:02:35.4]}
18. d5 {[%clk 0:01:44.9]} 18... exd5 {[%clk 0:02:30]} 19. exd5 {[%clk
0:01:45.8]} 19... c3 {[%clk 0:02:29.3]} 20. Rfd1 {[%clk 0:01:44.1]} 20... Ba4
{[%clk 0:02:28]} 21. Qxc3 {[%clk 0:01:43.1]} 21... Bxd1 {[%clk 0:02:28.9]} 22.
Rxd1 {[%clk 0:01:43.1]} 22... Rac8 {[%clk 0:02:27.8]} 23. Qa1 {[%clk 0:01:34.5]}
23... Nc4 {[%clk 0:02:24]} 24. Bb4 {[%clk 0:01:30.6]} 24... a5 {[%clk
0:02:19.3]} 25. Bc3 {[%clk 0:01:30.3]} 25... f6 {[%clk 0:02:19.1]} 26. h4 {[%clk
0:01:30.3]} 26... a4 {[%clk 0:02:15.8]} 27. h5 {[%clk 0:01:29.4]} 27... h6
{[%clk 0:02:13.7]} 28. Kh2 {[%clk 0:01:29.5]} 28... Re2 {[%clk 0:01:53.7]} 29.
Bd4 {[%clk 0:01:23]} 29... Qf5 {[%clk 0:01:45]} 30. Qxa4 {[%clk 0:01:08.8]}
30... Qxh5+ {[%clk 0:01:38.6]} 31. Kg1 {[%clk 0:01:08.8]} 31... Nd6 {[%clk
0:01:36.3]} 32. Be3 {[%clk 0:01:01.5]} 32... Rcc2 {[%clk 0:01:29.3]} 33. Rf1
{[%clk 0:00:59.4]} 33... Kh7 {[%clk 0:01:24.7]} 34. Qf4 {[%clk 0:00:50.9]} 34...
Qe5 {[%clk 0:01:18.1]} 35. Qf3 {[%clk 0:00:37.4]} 35... f5 {[%clk 0:01:12.2]}
36. Bf4 {[%clk 0:00:37.3]} 36... Qe7 {[%clk 0:01:10.2]} 37. Bxd6 {[%clk
0:00:36.3]} 37... Qxd6 {[%clk 0:01:11.1]} 38. Qxf5+ {[%clk 0:00:36.3]} 38... Kh8
{[%clk 0:01:11]} 39. Be4 {[%clk 0:00:34.4]} 39... Rxe4 {[%clk 0:01:09.3]} 40.
Qxe4 {[%clk 0:00:35.3]} 40... Rc8 {[%clk 0:01:09]} 41. Re1 {[%clk 0:00:31.4]}
41... Rf8 {[%clk 0:01:08.2]} 42. Qe6 {[%clk 0:00:30.8]} 42... Qc5 {[%clk
0:01:08.1]} 43. Re2 {[%clk 0:00:30.4]} 43... Rd8 {[%clk 0:01:06.4]} 44. Re5
{[%clk 0:00:26.3]} 44... Rf8 {[%clk 0:01:05.4]} 45. Rf5 {[%clk 0:00:25.3]} 45...
Rd8 {[%clk 0:01:04.8]} 46. d6 {[%clk 0:00:23.8]} 46... Qc1+ {[%clk 0:01:03]} 47.
Kg2 {[%clk 0:00:22.9]} 47... Qc6+ {[%clk 0:01:02.7]} 48. f3 {[%clk 0:00:22]}
48... Qc2+ {[%clk 0:00:59.3]} 49. Kh3 {[%clk 0:00:21]} 49... Qd1 {[%clk
0:00:56.5]} 50. Qe7 {[%clk 0:00:13]} 50... Rg8 {[%clk 0:00:51.7]} 51. d7 {[%clk
0:00:11.8]} 51... Kh7 {[%clk 0:00:45.2]} 52. Rf7 {[%clk 0:00:10.1]} 52... Qh1+
{[%clk 0:00:39.6]} 53. Kg4 {[%clk 0:00:09.1]} 53... Qd1 {[%clk 0:00:32]} 54.
Qe4+ {[%clk 0:00:05.7]} 54... Kh8 {[%clk 0:00:31.8]} 55. Qe7 {[%clk 0:00:04.6]}
55... Qd4+ {[%clk 0:00:31.4]} 56. Rf4 {[%clk 0:00:04.4]} 56... Qd5 {[%clk
0:00:27.2]} 57. Rf8 {[%clk 0:00:04.7]} 57... Qd4+ {[%clk 0:00:26.6]} 58. f4
{[%clk 0:00:04.5]} 58... Qd1+ {[%clk 0:00:26.2]} 59. Kh3 {[%clk 0:00:04]} 59...
Qh1+ {[%clk 0:00:25.9]} 60. Kg4 {[%clk 0:00:04.2]} 60... Qd1+ {[%clk 0:00:25.7]}
61. Kh3 {[%clk 0:00:04.5]} 61... Qf1+ {[%clk 0:00:24.1]} 62. Kg4 {[%clk
0:00:03.7]} 62... Qd1+ {[%clk 0:00:17]} 1/2-1/2

[Event "Early-Titled-Tuesday-Blitz-April-16-2024"]
[Site "Chess.com"]
[Date "2024.04.16"]
[Round "2"]
[White "Titus369"]
[Black "SpongeBob_03"]
[Result "1-0"]
[WhiteElo "2658"]
[BlackElo "2232"]
[TimeControl "180+1"]
[EndTime "8:18:21 PDT"]
[Termination "Titus369 won by checkmate"]

1. e4 {[%clk 0:03:00.9]} 1... c5 {[%clk 0:02:59.8]} 2. Nf3 {[%clk 0:02:56.8]}
2... e6 {[%clk 0:02:56.7]} 3. d4 {[%clk 0:02:57]} 3... cxd4 {[%clk 0:02:57.6]}
4. Nxd4 {[%clk 0:02:56.5]} 4... Nf6 {[%clk 0:02:58.3]} 5. Nc3 {[%clk 0:02:55.9]}
5... Nc6 {[%clk 0:02:59]} 6. g3 {[%clk 0:02:51.6]} 6... Bb4 {[%clk 0:02:55.8]}
7. Bg2 {[%clk 0:02:50.6]} 7... O-O {[%clk 0:02:54.2]} 8. O-O {[%clk 0:02:48.8]}
8... Bxc3 {[%clk 0:02:54.3]} 9. bxc3 {[%clk 0:02:47.4]} 9... d5 {[%clk
0:02:55.2]} 10. Bg5 {[%clk 0:02:43.7]} 10... dxe4 {[%clk 0:02:29.9]} 11. Nxc6
{[%clk 0:02:39.2]} 11... bxc6 {[%clk 0:02:30]} 12. Qxd8 {[%clk 0:02:37.6]} 12...
Rxd8 {[%clk 0:02:30.7]} 13. Bxe4 {[%clk 0:02:37.4]} 13... Ba6 {[%clk 0:02:31.3]}
14. Bxc6 {[%clk 0:02:33.2]} 14... Bxf1 {[%clk 0:02:18.7]} 15. Bxa8 {[%clk
0:02:30.4]} 15... Rxa8 {[%clk 0:02:19.3]} 16. Rxf1 {[%clk 0:02:29.8]} 16... Ne4
{[%clk 0:02:19.9]} 17. Be3 {[%clk 0:02:20]} 17... Nxc3 {[%clk 0:02:20]} 18. Bd2
{[%clk 0:02:13.4]} 18... Ne2+ {[%clk 0:02:17.4]} 19. Kg2 {[%clk 0:02:11.8]}
19... Rc8 {[%clk 0:02:17.5]} 20. Re1 {[%clk 0:01:21.2]} 20... Nc3 {[%clk
0:01:48.3]} 21. Bxc3 {[%clk 0:00:27.3]} 21... Rxc3 {[%clk 0:01:49.2]} 22. Rb1
{[%clk 0:00:27.1]} 22... g6 {[%clk 0:01:43.2]} 23. Rb2 {[%clk 0:00:26.6]} 23...
Kg7 {[%clk 0:01:39.4]} 24. Kf1 {[%clk 0:00:27.1]} 24... Kf6 {[%clk 0:01:39.6]}
25. Ke2 {[%clk 0:00:27.5]} 25... Ke5 {[%clk 0:01:40.2]} 26. Kd2 {[%clk
0:00:27.7]} 26... Rf3 {[%clk 0:01:40.3]} 27. Ke2 {[%clk 0:00:26.5]} 27... Rc3
{[%clk 0:01:41]} 28. f4+ {[%clk 0:00:23.2]} 28... Kd4 {[%clk 0:01:39.9]} 29. Kd2
{[%clk 0:00:22.5]} 29... Rc4 {[%clk 0:01:37]} 30. Rb7 {[%clk 0:00:20.4]} 30...
Ra4 {[%clk 0:01:35.3]} 31. Rxf7 {[%clk 0:00:19.4]} 31... Rxa2 {[%clk 0:01:34.4]}
32. Rxh7 {[%clk 0:00:19]} 32... a5 {[%clk 0:01:35.1]} 33. Re7 {[%clk 0:00:17.6]}
33... Kd5 {[%clk 0:01:34.2]} 34. Rg7 {[%clk 0:00:16.2]} 34... a4 {[%clk
0:01:30.4]} 35. Rxg6 {[%clk 0:00:16.1]} 35... Kc6 {[%clk 0:01:24.3]} 36. Rxe6+
{[%clk 0:00:15.1]} 36... Kb5 {[%clk 0:01:24.7]} 37. Kc3 {[%clk 0:00:13.9]} 37...
Ra1 {[%clk 0:01:20]} 38. Kb2 {[%clk 0:00:12.9]} 38... Rh1 {[%clk 0:01:19.7]} 39.
Re2 {[%clk 0:00:11.7]} 39... Kb4 {[%clk 0:01:19.8]} 40. Rf2 {[%clk 0:00:09]}
40... Kc5 {[%clk 0:00:44.8]} 41. f5 {[%clk 0:00:08.9]} 41... Re1 {[%clk
0:00:40.9]} 42. f6 {[%clk 0:00:08.2]} 42... Re8 {[%clk 0:00:41.6]} 43. f7 {[%clk
0:00:08.6]} 43... Rf8 {[%clk 0:00:42]} 44. Ka3 {[%clk 0:00:07.2]} 44... Kd4
{[%clk 0:00:42.4]} 45. Kxa4 {[%clk 0:00:05.9]} 45... Ke3 {[%clk 0:00:43.3]} 46.
Rf4 {[%clk 0:00:05.2]} 46... Kd2 {[%clk 0:00:42.1]} 47. c4 {[%clk 0:00:05.4]}
47... Kd3 {[%clk 0:00:42.1]} 48. Kb5 {[%clk 0:00:05.8]} 48... Ke3 {[%clk
0:00:40.8]} 49. Kc5 {[%clk 0:00:05.9]} 49... Kd3 {[%clk 0:00:40.9]} 50. Kd6
{[%clk 0:00:06.4]} 50... Ke3 {[%clk 0:00:40.9]} 51. Ke7 {[%clk 0:00:06.6]} 51...
Rc8 {[%clk 0:00:41]} 52. f8=Q {[%clk 0:00:07]} 52... Rc7+ {[%clk 0:00:41.6]} 53.
Kd6 {[%clk 0:00:07.3]} 53... Ra7 {[%clk 0:00:41.4]} 54. Qe7+ {[%clk 0:00:06.3]}
54... Rxe7 {[%clk 0:00:42]} 55. Kxe7 {[%clk 0:00:07.2]} 55... Kd3 {[%clk
0:00:42.7]} 56. c5 {[%clk 0:00:08.1]} 56... Ke2 {[%clk 0:00:43.4]} 57. c6 {[%clk
0:00:09]} 57... Ke1 {[%clk 0:00:43.1]} 58. c7 {[%clk 0:00:09.9]} 58... Kd1
{[%clk 0:00:43.9]} 59. c8=Q {[%clk 0:00:10.8]} 59... Kd2 {[%clk 0:00:44.7]} 60.
Ke6 {[%clk 0:00:11.5]} 60... Ke2 {[%clk 0:00:45.6]} 61. Ke5 {[%clk 0:00:12.4]}
61... Ke1 {[%clk 0:00:46.5]} 62. g4 {[%clk 0:00:13.3]} 62... Kd1 {[%clk
0:00:47.3]} 63. g5 {[%clk 0:00:14.2]} 63... Kd2 {[%clk 0:00:48.2]} 64. h4 {[%clk
0:00:15.1]} 64... Ke2 {[%clk 0:00:49.1]} 65. h5 {[%clk 0:00:16]} 65... Ke1
{[%clk 0:00:50]} 66. g6 {[%clk 0:00:16.9]} 66... Kd1 {[%clk 0:00:50.8]} 67. h6
{[%clk 0:00:17.8]} 67... Kd2 {[%clk 0:00:51.7]} 68. g7 {[%clk 0:00:18.7]} 68...
Ke2 {[%clk 0:00:52.6]} 69. h7 {[%clk 0:00:19.6]} 69... Ke1 {[%clk 0:00:53.5]}
70. g8=Q {[%clk 0:00:19.3]} 70... Kd2 {[%clk 0:00:54.4]} 71. h8=Q {[%clk
0:00:19.3]} 71... Ke2 {[%clk 0:00:55.3]} 72. Qg3 {[%clk 0:00:16.8]} 72... Kd1
{[%clk 0:00:55.2]} 73. Qcc3 {[%clk 0:00:15.2]} 73... Ke2 {[%clk 0:00:55.1]} 74.
Kd6 {[%clk 0:00:11]} 74... Kd1 {[%clk 0:00:54.8]} 75. Kc7 {[%clk 0:00:11.9]}
75... Ke2 {[%clk 0:00:55.2]} 76. Kb8 {[%clk 0:00:12.8]} 76... Kd1 {[%clk
0:00:55.4]} 77. Ka8 {[%clk 0:00:13.7]} 77... Ke2 {[%clk 0:00:55.9]} 78. Qge3+
{[%clk 0:00:08.4]} 78... Kd1 {[%clk 0:00:55.3]} 79. Qed4+ {[%clk 0:00:08.1]}
79... Ke2 {[%clk 0:00:55.1]} 80. Qhe5# {[%clk 0:00:08.5]} 1-0